bitfinex/quotes_SOLUSD_20230120
["timestamp","ask_amount","ask_price","bid_price","bid_amount"]
[1674190188927,10.0,21.214,21.197,117.7551]
[1674190189143,146.0841,21.22,21.199,10.0]
[1674190189358,146.0841,21.22,21.201,10.0]
[1674190189891,146.0841,21.22,21.2,10.31]
[1674190190101,10.0,21.217,21.201,20.0]
[1674190190313,10.0,21.214,21.2,10.31]
[1674190190502,10.0,21.214,21.199,10.0]
[1674190190503,17.96,21.213,21.199,10.0]
[1674190190711,17.96,21.213,21.2,11.34]
[1674190191032,10.0,21.212,21.2,11.34]
[1674190191255,0.96,21.211,21.198,12.18]
[1674190191444,17.96,21.211,21.198,12.18]
[1674190191772,10.96,21.21,21.197,117.7551]
[1674190191966,10.0,21.208,21.197,117.7551]
[1674190192182,1.92,21.207,21.197,117.7551]
[1674190193051,18.92,21.207,21.197,117.7551]
[1674190196195,18.92,21.207,21.193,12.11]
[1674190196404,18.92,21.207,21.195,20.0]
[1674190196602,10.0,21.206,21.195,20.0]
[1674190196811,17.96,21.205,21.195,20.0]
[1674190197028,0.96,21.204,21.193,20.0]
[1674190197244,0.96,21.203,21.192,8.322]
[1674190197438,0.96,21.202,21.188,8.599]
[1674190197649,0.96,21.201,21.187,125.7566]
[1674190197985,0.96,21.2,21.187,8.599]
[1674190198200,0.96,21.199,21.181,7.961]
[1674190198400,0.96,21.198,21.181,7.961]
[1674190198711,0.96,21.197,21.187,20.0]
[1674190198930,0.96,21.196,21.181,17.961]
[1674190199135,0.96,21.195,21.182,10.0]
[1674190199323,0.96,21.194,21.183,6.446]
[1674190199537,0.96,21.193,21.183,6.446]
[1674190199761,0.96,21.192,21.183,6.446]
[1674190200382,0.96,21.191,21.183,6.446]
[1674190200711,0.96,21.191,21.184,20.0]
[1674190201118,45.37,21.204,21.185,10.0]
[1674190201325,18.92,21.203,21.186,29.215]
[1674190201535,18.92,21.203,21.186,20.0]
[1674190201762,10.0,21.202,21.187,10.0]
[1674190201950,45.37,21.204,21.187,10.0]
[1674190202160,10.0,21.204,21.188,17.0]
[1674190202385,10.0,21.204,21.189,10.0]
[1674190202807,10.0,21.204,21.19,11.19]
[1674190203018,10.0,21.204,21.189,21.19]
[1674190203241,10.0,21.204,21.189,11.19]
[1674190203427,10.0,21.204,21.19,17.6832236]
[1674190204078,10.0,21.204,21.188,11.91]
[1674190204697,18.92,21.203,21.188,29.5932236]
[1674190204901,18.92,21.203,21.189,10.0]
[1674190205110,18.92,21.203,21.189,27.6832236]
[1674190205868,0.96,21.203,21.189,27.6832236]
[1674190206062,35.36,21.211,21.19,90.7032236]
[1674190206271,113.4399,21.213,21.19,90.7032236]
[1674190206597,113.4399,21.213,21.191,27.6832236]
[1674190206814,113.4399,21.213,21.193,10.0]
[1674190207007,113.4399,21.213,21.194,34.2]
[1674190207645,148.7999,21.213,21.194,20.0]
[1674190207854,148.7999,21.213,21.194,33.81]
[1674190208164,10.0,21.21,21.194,33.81]
[1674190208375,18.92,21.209,21.195,10.0]
[1674190208589,18.92,21.209,21.196,20.0]
[1674190209527,113.4399,21.213,21.196,20.0]
[1674190209956,10.0,21.212,21.197,13.82]
[1674190210278,10.0,21.212,21.197,10.0]
[1674190210469,10.0,21.212,21.197,120.5191]
[1674190210679,0.96,21.211,21.197,120.5191]
[1674190210890,17.96,21.211,21.197,120.5191]
[1674190211844,17.96,21.211,21.197,110.5191]
[1674190212050,0.96,21.21,21.197,110.5191]
[1674190212248,0.96,21.209,21.197,110.5191]
[1674190212473,10.0,21.208,21.197,110.5191]
[1674190212694,18.92,21.207,21.197,110.5191]
[1674190213936,1.92,21.207,21.197,110.5191]
[1674190215089,1.92,21.207,21.198,10.0]
[1674190216791,1.92,21.207,21.197,120.5191]
[1674190217102,1.92,21.207,21.197,110.5191]
[1674190217927,1.92,21.207,21.198,10.0]
[1674190218286,0.96,21.207,21.198,10.0]
[1674190218449,10.0,21.212,21.198,10.0]
[1674190218662,10.0,21.21,21.198,10.0]
[1674190218871,1.92,21.209,21.197,120.5191]
[1674190219416,1.92,21.209,21.197,110.5191]
[1674190221201,1.92,21.209,21.198,8.202]
[1674190221598,1.92,21.209,21.197,118.7151]
[1674190222672,18.92,21.209,21.197,110.5191]
[1674190222880,10.0,21.208,21.197,110.5191]
[1674190223095,10.0,21.206,21.197,110.5191]
[1674190223408,0.96,21.205,21.197,110.5191]
[1674190223616,0.96,21.204,21.197,110.5191]
[1674190224577,0.96,21.203,21.196,20.0]
[1674190224785,0.96,21.203,21.197,20.0]
[1674190224992,0.96,21.203,21.195,20.0]
[1674190228868,0.96,21.204,21.196,10.0]
[1674190229078,20.02,21.22,21.197,20.0]
[1674190229307,113.4399,21.213,21.197,30.42]
[1674190229499,113.4399,21.213,21.197,20.0]
[1674190229717,113.4399,21.213,21.198,10.0]
[1674190230341,113.4399,21.213,21.199,11.16]
[1674190230555,113.4399,21.213,21.2,10.0]
[1674190231290,18.92,21.212,21.2,10.0]
[1674190231721,113.4399,21.213,21.2,10.0]
[1674190233199,1.92,21.212,21.2,10.0]
[1674190233422,11.92,21.212,21.2,10.0]
[1674190233935,1.92,21.212,21.2,10.0]
[1674190234774,1.92,21.212,21.201,20.0]
[1674190234977,1.92,21.212,21.202,10.0]
[1674190235303,10.0,21.218,21.204,10.0]
[1674190235517,17.0,21.217,21.205,20.0]
[1674190235729,0.96,21.216,21.205,20.0]
[1674190235919,0.96,21.215,21.205,20.0]
[1674190236132,0.96,21.214,21.205,20.0]
[1674190240665,0.96,21.213,21.205,20.0]
[1674190240866,0.96,21.212,21.205,20.0]
[1674190241197,0.96,21.212,21.202,20.0]
[1674190241920,0.96,21.212,21.203,10.0]
[1674190242130,0.96,21.212,21.204,20.0]
[1674190243525,0.96,21.213,21.204,20.0]
[1674190243721,0.96,21.215,21.204,20.0]
[1674190243937,0.96,21.214,21.204,20.0]
[1674190244259,0.96,21.213,21.204,20.0]
[1674190244449,0.96,21.212,21.204,20.0]
[1674190244658,0.96,21.211,21.202,20.0]
[1674190244868,0.96,21.21,21.202,20.0]
[1674190245191,0.96,21.209,21.201,20.0]
[1674190245406,0.96,21.208,21.201,20.0]
[1674190245620,0.96,21.207,21.201,20.0]
[1674190248654,0.96,21.208,21.201,20.0]
[1674190248868,10.0,21.212,21.201,20.0]
[1674190249082,1.92,21.211,21.201,20.0]
[1674190251301,18.92,21.211,21.2,20.0]
[1674190252053,10.0,21.22,21.201,10.0]
[1674190252249,10.0,21.218,21.202,20.0]
[1674190252440,10.0,21.218,21.203,10.0]
[1674190252645,10.0,21.218,21.205,10.0]
[1674190253189,0.96,21.217,21.206,20.0]
[1674190253382,10.96,21.216,21.206,20.0]
[1674190253594,17.96,21.215,21.206,20.0]
[1674190253804,0.96,21.214,21.204,20.0]
[1674190254115,0.96,21.213,21.204,20.0]
[1674190254331,0.96,21.213,21.202,20.0]
[1674190254877,0.96,21.213,21.203,10.0]
[1674190255092,0.96,21.212,21.204,20.0]
[1674190255301,0.96,21.211,21.204,20.0]
[1674190255506,118.6973,21.219,21.204,20.0]
[1674190255699,154.0473,21.219,21.204,20.0]
[1674190255910,118.6973,21.219,21.204,20.0]
[1674190256746,118.6973,21.219,21.205,10.0]
[1674190256958,108.6973,21.219,21.21,15.02]
[1674190257276,35.34,21.225,21.21,15.02]
[1674190258235,0.96,21.223,21.206,14.82]
[1674190258460,10.96,21.222,21.207,20.0]
[1674190258779,10.0,21.22,21.207,20.0]
[1674190258990,1.92,21.219,21.207,20.0]
[1674190259182,18.92,21.219,21.207,20.0]
[1674190261704,18.92,21.219,21.206,20.0]
[1674190261914,18.92,21.219,21.205,20.0]
[1674190262144,18.92,21.219,21.206,10.0]
[1674190262338,18.92,21.219,21.207,20.0]
[1674190263181,1.92,21.219,21.207,20.0]
[1674190264033,18.92,21.219,21.207,20.0]
[1674190264966,45.35,21.218,21.207,20.0]
[1674190265176,10.0,21.216,21.199,17.06]
[1674190265374,36.32,21.215,21.198,27.06]
[1674190265591,10.0,21.213,21.198,10.0]
[1674190265800,18.92,21.212,21.198,10.0]
[1674190266547,18.92,21.212,21.197,135.9509]
[1674190266874,18.92,21.212,21.195,18.48]
[1674190267056,35.36,21.211,21.196,20.0]
[1674190267267,28.92,21.21,21.192,110.9703]
[1674190267911,10.0,21.209,21.192,128.6535236]
[1674190268111,18.92,21.208,21.192,128.6535236]
[1674190268337,18.92,21.208,21.193,10.0]
[1674190268862,18.92,21.208,21.194,20.0]
[1674190269076,18.92,21.208,21.195,10.0]
[1674190269273,18.92,21.208,21.196,20.0]
[1674190271820,10.0,21.207,21.194,20.0]
[1674190272130,18.92,21.206,21.193,10.0]
[1674190272347,18.92,21.206,21.194,20.0]
[1674190275177,18.92,21.206,21.193,20.0]
[1674190275708,10.0,21.205,21.191,20.0]
[1674190275900,10.0,21.203,21.191,20.0]
[1674190276339,18.92,21.202,21.191,20.0]
[1674190276760,18.92,21.202,21.189,20.0]
[1674190276946,18.92,21.202,21.19,18.55]
[1674190277158,18.92,21.202,21.191,20.0]
[1674190279058,18.92,21.202,21.188,21.7]
[1674190279270,18.92,21.202,21.187,22.24]
[1674190279491,10.0,21.201,21.187,22.24]
[1674190279813,18.92,21.2,21.186,133.0209]
[1674190280016,17.0,21.199,21.188,17.6832236]
[1674190280340,1.92,21.198,21.188,17.6832236]
[1674190280531,0.96,21.198,21.188,17.6832236]
[1674190280748,0.96,21.199,21.188,17.6832236]
[1674190280964,0.96,21.198,21.188,17.6832236]
[1674190289163,0.96,21.198,21.187,10.0]
[1674190290326,0.96,21.197,21.187,10.0]
[1674190290528,0.96,21.196,21.187,10.0]
[1674190290726,0.96,21.195,21.187,10.0]
[1674190291143,0.96,21.194,21.186,150.7041236]
[1674190291360,0.96,21.194,21.188,10.0]
[1674190293056,17.0,21.2,21.188,10.0]
[1674190293260,1.92,21.199,21.188,10.0]
[1674190293719,1.92,21.199,21.187,10.0]
[1674190294034,0.96,21.199,21.186,160.7041236]
[1674190294224,0.96,21.199,21.188,10.0]
[1674190294436,0.96,21.199,21.188,34.07]
[1674190295704,0.96,21.198,21.188,34.07]
[1674190296018,0.96,21.197,21.188,34.07]
[1674190296335,0.96,21.196,21.188,10.0]
[1674190296541,0.96,21.196,21.187,53.14]
[1674190296755,0.96,21.195,21.187,43.14]
[1674190297073,0.85567894,21.194,21.187,20.0]
[1674190297273,0.96,21.193,21.182,20.0]
[1674190297481,0.96,21.193,21.183,23.56]
[1674190297691,0.96,21.193,21.184,20.0]
[1674190298448,0.96,21.193,21.184,37.6832236]
[1674190298653,0.96,21.193,21.185,24.05]
[1674190298972,0.96,21.193,21.186,20.0]
[1674190299176,0.96,21.192,21.186,20.0]
[1674190300882,0.96,21.193,21.186,20.0]
[1674190301056,17.0,21.2,21.186,20.0]
[1674190301272,10.0,21.203,21.186,20.0]
[1674190301588,10.0,21.203,21.185,20.0]
[1674190301791,10.0,21.203,21.186,27.8]
[1674190302002,10.0,21.203,21.187,20.0]
[1674190302538,10.0,21.199,21.187,20.0]
[1674190302733,18.92,21.198,21.187,20.0]
[1674190303807,18.92,21.198,21.187,30.0]
[1674190304547,17.0,21.197,21.187,20.0]
[1674190304734,1.92,21.196,21.187,20.0]
[1674190304940,0.96,21.196,21.187,30.0]
[1674190305155,0.96,21.197,21.187,30.0]
[1674190305377,0.96,21.196,21.187,30.0]
[1674190306438,0.96,21.197,21.187,47.6832236]
[1674190306624,10.0,21.203,21.188,10.0]
[1674190306836,18.92,21.201,21.188,10.0]
[1674190308013,18.92,21.201,21.188,9.93396205]
[1674190308225,18.92,21.201,21.188,40.90396205]
[1674190308406,18.92,21.201,21.187,47.6832236]
[1674190308407,18.92,21.201,21.187,71.1032236]
[1674190308833,18.92,21.201,21.188,10.0]
[1674190309777,10.0,21.2,21.188,10.0]
[1674190309984,17.96,21.199,21.188,10.0]
[1674190310200,18.92,21.199,21.188,10.0]
[1674190310848,1.92,21.199,21.188,10.0]
[1674190318950,112.4122,21.204,21.188,57.3132236]
[1674190319154,112.4122,21.204,21.188,27.6832236]
[1674190320318,10.0,21.202,21.188,27.6832236]
[1674190320641,18.92,21.201,21.189,32.28]
[1674190320845,18.92,21.201,21.188,60.2732236]
[1674190321243,18.92,21.201,21.188,42.59]
[1674190324624,17.0,21.2,21.188,42.59]
[1674190324833,1.92,21.199,21.188,42.59]
[1674190325049,0.96,21.198,21.188,42.59]
[1674190325235,0.96,21.197,21.188,42.59]
[1674190325440,0.96,21.196,21.188,32.59]
[1674190325655,0.96,21.195,21.187,20.0]
[1674190325882,0.96,21.194,21.187,20.0]
[1674190326196,0.96,21.193,21.187,20.0]
[1674190326730,0.96,21.192,21.187,20.0]
[1674190326925,0.96,21.194,21.187,20.0]
[1674190334703,0.96,21.194,21.182,20.0]
[1674190335342,0.96,21.194,21.183,32.07]
[1674190335563,0.96,21.194,21.184,20.0]
[1674190335962,0.96,21.193,21.184,20.0]
[1674190336173,0.96,21.192,21.183,20.0]
[1674190336382,0.96,21.192,21.184,31.99]
[1674190336594,0.96,21.191,21.185,20.0]
[1674190336802,0.96,21.19,21.183,20.0]
[1674190337138,0.96,21.189,21.183,20.0]
[1674190337346,0.96,21.188,21.184,32.47]
[1674190337561,0.96,21.188,21.185,20.0]
[1674190338169,0.96,21.188,21.182,20.0]
[1674190338379,0.96,21.188,21.183,35.41]
[1674190338586,0.96,21.187,21.17,15.16]
[1674190338803,36.36,21.187,21.171,115.2186]
[1674190339012,17.96,21.186,21.171,115.2186]
[1674190339230,0.96,21.185,21.171,115.2186]
[1674190339448,0.96,21.184,21.171,115.2186]
[1674190339656,0.96,21.183,21.171,115.2186]
[1674190339872,0.96,21.182,21.171,115.2186]
[1674190340071,0.96,21.181,21.171,115.2186]
[1674190340285,0.96,21.18,21.171,115.2186]
[1674190340604,0.96,21.179,21.171,115.2186]
[1674190341025,0.96,21.178,21.167,35.29]
[1674190341215,0.96,21.177,21.165,10.0]
[1674190341434,0.96,21.176,21.165,10.0]
[1674190341641,0.96,21.175,21.165,10.0]
[1674190342204,0.96,21.175,21.164,90.9881]
[1674190343024,0.96,21.174,21.164,80.9881]
[1674190343425,0.96,21.173,21.164,80.9881]
[1674190343632,0.96,21.172,21.165,20.0]
[1674190347515,0.96,21.171,21.165,20.0]
[1674190347743,0.96,21.17,21.14,225.37634001]
[1674190347958,0.96,21.17,21.15,15.16]
[1674190348148,0.96,21.169,21.152,17.6832236]
[1674190348360,0.96,21.168,21.154,10.0]
[1674190348588,0.96,21.167,21.153,132.3671236]
[1674190348779,0.96,21.166,21.153,132.3671236]
[1674190348986,0.96,21.166,21.153,114.6839]
[1674190348987,0.96,21.165,21.153,114.6839]
[1674190349204,0.96,21.164,21.153,84.9939]
[1674190349654,0.96,21.163,21.153,84.9939]
[1674190349837,0.96,21.162,21.153,84.9939]
[1674190350048,0.96,21.161,21.153,84.9939]
[1674190350669,27.0,21.169,21.154,37.6832236]
[1674190350885,1.92,21.168,21.154,20.0]
[1674190353201,10.0,21.167,21.15,36.76]
[1674190353421,54.36,21.166,21.15,15.16]
[1674190353633,54.36,21.166,21.147,21.6]
[1674190353843,10.0,21.165,21.145,20.26]
[1674190354064,54.36,21.164,21.145,20.26]
[1674190354277,10.0,21.163,21.145,20.26]
[1674190354589,54.36,21.162,21.143,19.41]
[1674190354998,10.0,21.161,21.141,119.9737]
[1674190355319,54.37,21.16,21.141,119.9737]
[1674190355719,10.0,21.159,21.141,119.9737]
[1674190355934,18.92,21.158,21.14,15.07]
[1674190356147,10.0,21.157,21.14,15.07]
[1674190356349,0.96,21.156,21.141,20.0]
[1674190356561,0.96,21.155,21.141,20.0]
[1674190356791,0.96,21.154,21.141,20.0]
[1674190357006,0.96,21.153,21.141,20.0]
[1674190357219,0.96,21.152,21.141,20.0]
[1674190357417,0.96,21.151,21.141,20.0]
[1674190357633,0.96,21.15,21.141,20.0]
[1674190357840,219.24616996,21.186,21.141,20.0]
[1674190358159,219.24616996,21.186,21.14,15.07]
[1674190358160,35.45,21.16,21.14,15.07]
[1674190358484,10.0,21.161,21.141,15.71]
[1674190358665,10.0,21.161,21.141,33.3932236]
[1674190359009,10.0,21.161,21.142,17.6832236]
[1674190359189,10.0,21.161,21.144,10.0]
[1674190359522,10.0,21.165,21.145,34.3432236]
[1674190359734,118.1182,21.166,21.15,15.16]
[1674190360155,10.0,21.165,21.15,32.8432236]
[1674190361078,10.0,21.163,21.15,15.16]
[1674190361308,17.0,21.162,21.147,35.2532236]
[1674190361713,10.0,21.163,21.147,35.2532236]
[1674190361924,10.0,21.165,21.15,15.02]
[1674190362352,10.0,21.165,21.148,17.57]
[1674190362569,10.0,21.163,21.146,20.0]
[1674190362779,35.44,21.162,21.144,20.0]
[1674190362995,10.0,21.161,21.146,10.0]
[1674190363184,0.96,21.16,21.146,10.0]
[1674190363612,16.12,21.16,21.131,112.07523773]
[1674190363845,55.45,21.159,21.135,114.2305]
[1674190364053,18.92,21.158,21.135,114.2305]
[1674190364268,35.45,21.157,21.136,95.146632]
[1674190364582,18.92,21.156,21.136,79.316632]
[1674190364774,35.46,21.155,21.136,79.316632]
[1674190364984,17.96,21.154,21.136,79.316632]
[1674190365199,55.46,21.153,21.136,79.316632]
[1674190365415,0.96,21.152,21.136,79.316632]
[1674190365627,35.46,21.151,21.136,79.316632]
[1674190365934,35.46,21.151,21.14,15.16]
[1674190366151,10.0,21.152,21.14,15.16]
[1674190366365,110.0184,21.156,21.141,9.546]
[1674190366560,110.0184,21.156,21.141,19.546]
[1674190366767,35.45,21.16,21.141,19.546]
[1674190366994,35.44,21.164,21.15,15.16]
[1674190367203,116.9652,21.166,21.15,15.16]
[1674190367817,116.9652,21.166,21.143,22.19]
[1674190368045,53.4,21.165,21.144,20.0]
[1674190368251,10.0,21.164,21.144,20.0]
[1674190368573,10.0,21.162,21.144,20.0]
[1674190368787,54.37,21.161,21.142,134.7674]
[1674190368996,10.0,21.16,21.142,134.7674]
[1674190369190,54.37,21.159,21.142,134.7674]
[1674190369399,54.37,21.159,21.14,15.16]
[1674190369630,10.0,21.158,21.138,12.93]
[1674190369831,53.41,21.157,21.137,10.0]
[1674190370159,10.96,21.156,21.135,10.0]
[1674190370372,10.0,21.154,21.135,10.0]
[1674190370677,54.38,21.153,21.135,10.0]
[1674190371100,10.0,21.152,21.135,10.0]
[1674190371281,18.92,21.151,21.134,11.51]
[1674190371492,35.46,21.15,21.132,117.8694]
[1674190371707,10.0,21.148,21.131,108.3972]
[1674190371919,0.96,21.147,21.131,116.0572]
[1674190372126,0.96,21.146,21.131,116.0572]
[1674190372351,0.96,21.145,21.131,116.0572]
[1674190372570,0.96,21.144,21.131,108.3972]
[1674190372779,0.96,21.143,21.131,108.3972]
[1674190372974,0.96,21.142,21.131,108.3972]
[1674190373184,0.96,21.141,21.131,108.3972]
[1674190373384,0.96,21.14,21.131,114.4792]
[1674190373598,0.96,21.139,21.13,25.16]
[1674190373807,0.96,21.138,21.13,25.16]
[1674190374038,10.0,21.144,21.13,25.16]
[1674190374354,126.0473,21.164,21.13,25.16]
[1674190374355,35.46,21.151,21.13,25.16]
[1674190374568,35.46,21.151,21.131,6.134]
[1674190374760,10.0,21.15,21.131,16.134]
[1674190374974,35.47,21.149,21.131,16.134]
[1674190375501,52.47,21.147,21.128,10.0]
[1674190375701,0.96,21.146,21.127,117.8694]
[1674190375911,35.47,21.145,21.127,117.8694]
[1674190376144,18.92,21.144,21.127,117.8694]
[1674190376336,10.0,21.144,21.13,15.16]
[1674190376694,10.0,21.144,21.127,117.8694]
[1674190376984,35.47,21.147,21.13,15.16]
[1674190377177,10.0,21.15,21.137,6.133]
[1674190377380,45.45,21.156,21.137,16.133]
[1674190377591,33.75576951,21.154,21.137,16.133]
[1674190377800,33.75576951,21.152,21.132,6.134]
[1674190378028,10.0,21.15,21.132,6.134]
[1674190378233,55.47,21.149,21.131,109.1123]
[1674190378448,10.0,21.148,21.131,109.1123]
[1674190378647,10.0,21.148,21.128,16.135]
[1674190378648,54.39,21.147,21.128,10.0]
[1674190378867,10.0,21.146,21.128,10.0]
[1674190379073,54.39,21.145,21.128,10.0]
[1674190379280,54.39,21.145,21.12,81.5221]
[1674190379491,15.1,21.14,21.12,81.5221]
[1674190379714,56.44,21.139,21.12,81.5221]
[1674190380028,17.96,21.138,21.111,6.14]
[1674190380349,15.12,21.13,21.112,10.0]
[1674190380669,15.12,21.13,21.102,6.294]
[1674190380670,54.42,21.129,21.102,6.294]
[1674190380858,74.42,21.129,21.104,17.67673975]
[1674190381059,74.42,21.129,21.11,15.16]
[1674190381270,10.0,21.128,21.111,6.292]
[1674190381589,18.92,21.127,21.104,6.294]
[1674190381806,35.5,21.126,21.104,6.294]
[1674190382009,42.67576951,21.127,21.104,6.294]
[1674190382010,18.92,21.125,21.11,15.02]
[1674190382216,10.0,21.125,21.11,15.02]
[1674190382444,10.0,21.128,21.111,6.292]
[1674190382632,35.49,21.136,21.111,6.292]
[1674190382843,35.49,21.136,21.112,16.6922952]
[1674190383054,35.48,21.139,21.12,15.16]
[1674190383282,35.48,21.143,21.121,6.375]
[1674190383683,35.48,21.143,21.121,23.0672952]
[1674190383893,35.48,21.143,21.122,10.0]
[1674190384136,35.48,21.143,21.123,6.374]
[1674190384438,35.47,21.145,21.123,43.0662952]
[1674190384630,146.2898,21.147,21.124,16.6922952]
[1674190384838,10.0,21.146,21.125,27.293]
[1674190385048,10.0,21.146,21.122,10.0]
[1674190385049,23.75576951,21.144,21.124,7.293]
[1674190385267,35.48,21.143,21.121,7.584]
[1674190385480,59.22576951,21.144,21.116,7.586]
[1674190385689,15.16,21.14,21.116,7.586]
[1674190385906,15.16,21.13,21.11,24.171]
[1674190386101,73.46,21.129,21.11,24.171]
[1674190386311,74.42,21.129,21.11,15.16]
[1674190386521,23.75576951,21.128,21.101,8.609]
[1674190386731,36.46,21.127,21.102,16.6922952]
[1674190386946,10.96,21.126,21.103,10.0]
[1674190387151,56.47,21.125,21.101,8.609]
[1674190387367,15.16,21.12,21.097,16.6922952]
[1674190387571,74.44,21.119,21.094,127.4096]
[1674190387886,10.0,21.118,21.094,127.4096]
[1674190388096,54.44,21.117,21.091,8.89]
[1674190388307,15.12,21.11,21.091,8.89]
[1674190388535,54.45,21.109,21.088,6.634]
[1674190388748,20.0,21.108,21.087,136.5091952]
[1674190388954,64.46,21.107,21.088,16.6922952]
[1674190389152,64.46,21.107,21.089,7.644]
[1674190389366,15.12,21.1,21.088,3.6922952]
[1674190389572,10.96,21.099,21.078,10.0]
[1674190389906,0.96,21.099,21.08,15.16]
[1674190390099,0.96,21.099,21.081,9.39]
[1674190390623,0.96,21.098,21.082,16.6922952]
[1674190390830,0.96,21.099,21.084,10.0]
[1674190391076,20.0,21.108,21.09,15.02]
[1674190391261,17.96,21.107,21.09,15.02]
[1674190391477,17.96,21.107,21.085,24.0192952]
[1674190391685,77.25576951,21.107,21.085,7.327]
[1674190392007,77.25576951,21.107,21.08,15.16]
[1674190392008,10.0,21.106,21.082,15.96893665]
[1674190392217,10.0,21.106,21.081,7.506]
[1674190392218,53.5,21.105,21.081,7.506]
[1674190392421,0.96,21.104,21.081,7.506]
[1674190392637,15.16,21.1,21.079,7.489]
[1674190392848,10.0,21.098,21.079,7.489]
[1674190393066,17.96,21.097,21.079,7.489]
[1674190393385,0.96,21.096,21.079,7.489]
[1674190393599,36.52,21.095,21.072,7.791]
[1674190393927,15.1,21.09,21.071,7.103]
[1674190394105,36.53,21.089,21.066,7.104]
[1674190394311,37.0,21.088,21.066,7.104]
[1674190394522,1.92,21.087,21.066,7.104]
[1674190394755,35.57,21.086,21.066,7.104]
[1674190394957,28.92,21.085,21.066,7.104]
[1674190395362,15.05,21.08,21.061,111.119]
[1674190395582,18.92,21.079,21.062,12.37]
[1674190395788,10.0,21.078,21.063,10.0]
[1674190396126,18.92,21.077,21.061,12.37]
[1674190396522,18.92,21.077,21.058,13.48]
[1674190396744,18.92,21.077,21.06,15.16]
[1674190396953,35.57,21.089,21.061,14.29]
[1674190397161,35.57,21.089,21.061,30.25893665]
[1674190397598,35.57,21.089,21.062,15.96893665]
[1674190397795,35.57,21.089,21.063,46.71]
[1674190397989,35.57,21.089,21.07,15.02]
[1674190398206,35.56,21.094,21.071,37.61]
[1674190398413,15.16,21.1,21.071,53.57893665]
[1674190398414,35.55,21.097,21.071,53.57893665]